bitfinex/quotes_ETHUSD_20240717
["timestamp","ask_amount","ask_price","bid_price","bid_amount"]
[1721219400842,2.3631,3459.5,3459.0,2.89094]
[1721219402020,2.3631,3459.5,3459.1,3.89591676]
[1721219402330,2.3631,3459.5,3459.0,4.59094]
[1721219402331,2.3631,3459.5,3459.2,2.89083]
[1721219403817,2.3631,3459.5,3459.0,2.89093]
[1721219404016,2.3821,3459.4,3458.8,3.79927087]
[1721219404310,2.4929,3459.1,3458.9,2.89101]
[1721219408461,2.4929,3459.1,3458.8,2.89112]
[1721219408758,2.4929,3459.1,3458.6,2.89126]
[1721219408975,2.3757,3459.0,3458.6,2.89126]
[1721219409120,2.291,3458.8,3458.5,0.142]
[1721219409731,2.291,3458.8,3458.5,3.03341]
[1721219410983,2.89086,3459.2,3458.5,3.03341]
[1721219410984,2.3487,3459.2,3458.8,2.89116]
[1721219412689,2.3487,3459.2,3458.8,2.89112]
[1721219412992,2.3485,3459.1,3458.8,2.89114]
[1721219413144,2.3485,3459.1,3458.8,2.8911]
[1721219413976,2.3485,3459.1,3458.9,2.89108]
[1721219415277,2.3485,3459.1,3458.7,2.89118]
[1721219415452,1.024,3459.0,3458.6,2.89126]
[1721219415660,2.3654,3458.9,3458.7,2.89125]
[1721219415981,2.4002,3459.2,3458.8,2.89112]
[1721219416187,1.21100283,3459.6,3459.3,2.89075]
[1721219416188,2.4002,3459.5,3459.3,2.89075]
[1721219417171,0.90834835,3459.8,3459.3,2.89075]
[1721219417172,2.4308,3459.8,3459.7,2.89042]
[1721219419202,2.4403,3460.1,3459.7,2.89042]
[1721219419415,2.4403,3460.1,3459.8,2.89032]
[1721219420090,2.4218,3460.3,3460.0,2.89017]
[1721219422285,2.4218,3460.3,3460.1,2.89008]
[1721219424038,3.3819,3460.7,3460.1,2.89008]
[1721219424397,3.3819,3460.7,3460.3,2.88992]
[1721219424606,2.3579,3460.7,3460.3,2.88992]
[1721219425118,2.275,3461.0,3460.3,2.88992]
[1721219425428,0.90834835,3461.2,3460.8,2.88943]
[1721219425642,2.275,3461.3,3460.8,2.88945]
[1721219425941,2.275,3461.3,3461.0,2.88928]
[1721219426647,2.3144,3461.7,3461.1,2.88923]
[1721219427218,2.3144,3461.7,3461.2,2.88916]
[1721219427416,2.3144,3461.7,3461.3,2.88907]
[1721219427823,1.024,3461.6,3461.1,2.88919]
[1721219428031,2.3144,3461.7,3461.2,2.8891]
[1721219428342,2.88841,3462.2,3461.5,2.88889]
[1721219428343,1.024,3461.9,3461.5,2.88889]
[1721219429152,1.024,3461.9,3461.3,2.88908]
[1721219429518,1.024,3461.9,3461.4,2.88898]
[1721219431226,1.024,3461.9,3461.5,2.8889]
[1721219431814,2.585141,3462.1,3461.5,2.8889]
[1721219431815,3.609141,3462.1,3461.5,2.8889]
[1721219432254,2.585141,3462.1,3461.5,2.8889]
[1721219433171,2.585141,3462.1,3461.4,2.88898]
[1721219433172,1.024,3461.9,3461.4,2.88894]
[1721219433380,1.6737571,3461.9,3461.1,7.44]
[1721219433588,1.024,3461.5,3461.1,7.44]
[1721219433890,1.6737571,3461.9,3461.3,2.88902]
[1721219434107,1.024,3461.9,3461.3,2.88902]
[1721219434852,1.024,3461.9,3461.4,2.88899]
[1721219435069,2.585141,3462.1,3461.4,2.88899]
[1721219435070,3.609141,3462.1,3461.4,2.88899]
[1721219435271,3.609141,3462.1,3461.5,2.88889]
[1721219435889,1.024,3461.9,3461.5,2.8889]
[1721219436051,6.497561,3462.1,3461.5,2.8889]
[1721219436251,0.6497561,3462.0,3461.5,2.8889]
[1721219436452,1.024,3461.9,3461.5,2.8889]
[1721219436692,3.609141,3462.1,3461.5,2.8889]
[1721219437295,3.3203,3462.1,3461.5,2.8889]
[1721219437465,2.2963,3462.1,3461.5,2.8889]
[1721219438555,1.024,3462.0,3461.5,2.8889]
[1721219439585,2.2963,3462.1,3461.6,2.88883]
[1721219439792,2.2963,3462.1,3461.7,2.88875]
[1721219439997,2.4376,3462.5,3461.9,2.8885]
[1721219440575,2.4376,3462.5,3462.0,2.88848]
[1721219441522,2.4311,3462.9,3462.3,1.024]
[1721219441666,2.4311,3463.3,3462.4,1.7]
[1721219442025,2.4311,3463.3,3462.5,2.88801]
[1721219442332,2.4311,3463.3,3462.7,2.88786]
[1721219443523,2.4311,3463.3,3462.0,1.7]
[1721219443524,2.88759,3463.1,3462.0,1.7]
[1721219443709,2.88776,3462.9,3462.2,2.88828]
[1721219443909,2.3614,3462.7,3461.9,7.44]
[1721219444110,2.3614,3462.7,3462.0,2.88843]
[1721219444734,2.3614,3462.7,3461.9,7.44]
[1721219444735,2.8881,3462.5,3461.6,2.88883]
[1721219444944,2.8881,3462.5,3461.5,7.44]
[1721219445246,2.8881,3462.5,3461.8,2.88866]
[1721219445424,2.88817,3462.4,3461.5,10.32891]
[1721219445606,2.88827,3462.3,3461.5,10.32891]
[1721219445804,0.577644,3462.2,3461.5,7.44]
[1721219445993,2.88817,3462.4,3461.5,10.32891]
[1721219446627,2.88838,3462.2,3461.5,10.32891]
[1721219446794,2.88817,3462.4,3461.5,10.32891]
[1721219446995,2.88817,3462.4,3461.5,10.47091]
[1721219448428,3.12416,3462.6,3461.7,2.88872]
[1721219448693,0.548556,3462.5,3461.9,2.88853]
[1721219448895,0.548556,3462.5,3462.0,2.88849]
[1721219450637,0.23614,3462.6,3462.1,2.88841]
[1721219451000,2.3614,3462.7,3462.1,2.88841]
[1721219451532,5.24932,3462.7,3461.8,2.88866]
[1721219451738,5.24932,3462.7,3461.9,2.88857]
[1721219452100,2.88824,3462.4,3461.5,7.582]
[1721219452339,3.0,3462.8,3461.5,7.582]
[1721219452340,5.14115,3462.2,3461.5,7.582]
[1721219452640,0.802943,3462.1,3461.5,10.47091]
[1721219453745,2.88826,3462.3,3461.7,2.88873]
[1721219455137,2.88826,3462.3,3461.5,10.47091]
[1721219455511,2.88858,3462.0,3461.5,7.582]
[1721219455750,2.88868,3461.8,3461.5,7.582]
[1721219455903,2.88868,3461.8,3461.5,0.142]
[1721219456804,2.552158,3461.9,3461.5,0.142]
[1721219457246,2.88876,3461.7,3461.5,0.142]
[1721219458460,2.88883,3461.6,3461.5,0.142]
[1721219458673,3.7218048,3461.6,3461.5,0.142]
[1721219459447,0.8329748,3461.6,3461.5,0.142]
[1721219459661,2.88873,3461.8,3461.5,0.142]
[1721219459869,2.88881,3461.7,3461.5,0.142]
[1721219460559,2.88883,3461.6,3461.5,0.142]
[1721219462284,2.552158,3461.9,3461.5,0.142]
[1721219462481,5.22266,3462.2,3461.5,0.142]
[1721219462685,8.11107,3462.2,3461.5,0.142]
[1721219463183,2.88843,3462.1,3461.5,0.142]
[1721219463401,2.88865,3461.9,3461.5,0.142]
[1721219463887,2.88868,3461.8,3461.5,0.142]
[1721219464085,3.177548,3461.8,3461.5,0.142]
[1721219465180,0.288868,3461.8,3461.5,0.142]
[1721219465386,5.22267,3462.2,3461.5,0.142]
[1721219465387,2.88864,3461.9,3461.5,0.142]
[1721219465760,2.88867,3461.8,3461.5,0.142]
[1721219466188,2.88875,3461.7,3461.5,0.142]
[1721219468989,5.28675,3461.7,3461.5,0.142]
[1721219470104,2.398,3461.7,3461.5,0.142]
[1721219470395,2.88867,3461.8,3461.5,0.142]
[1721219470697,2.88845,3462.1,3461.5,0.142]
[1721219471308,2.88845,3462.1,3461.5,3.03089]
[1721219471454,2.88845,3462.1,3461.5,0.142]
[1721219471851,2.88845,3462.1,3461.5,3.0309]
[1721219472390,3.80483784,3462.1,3461.5,3.0309]
[1721219474291,3.80483784,3462.1,3461.5,0.142]
[1721219474658,6.69333784,3462.1,3461.5,0.142]
[1721219475083,2.88851,3462.0,3461.5,0.142]
[1721219476505,2.3741,3461.7,3461.5,0.142]
[1721219476662,3.415112,3461.6,3461.5,0.142]
[1721219478499,2.88883,3461.6,3461.5,0.142]
[1721219481017,8.03806,3461.6,3461.5,0.142]
[1721219481182,13.24261083,3461.6,3461.5,0.142]
[1721219481377,12.93965604,3461.6,3461.5,0.142]
[1721219481614,12.031608,3461.6,3461.5,0.142]
[1721219481785,14.04137013,3461.6,3461.5,0.142]
[1721219482195,13.04782213,3461.6,3461.5,0.142]
[1721219482396,12.06053434,3461.6,3461.5,0.142]
[1721219482632,15.97236434,3461.6,3461.5,0.142]
[1721219482832,15.06443912,3461.6,3461.5,0.142]
[1721219483040,16.27544195,3461.6,3461.5,0.142]
[1721219483335,15.06443912,3461.6,3461.5,0.142]
[1721219483721,16.27544195,3461.6,3461.5,0.142]
[1721219483923,19.16427195,3461.6,3461.5,0.142]
[1721219484338,18.14127195,3461.6,3461.5,0.142]
[1721219484489,16.93026912,3461.6,3461.5,0.142]
[1721219484699,18.14127195,3461.6,3461.5,0.142]
[1721219485110,16.93026912,3461.6,3461.5,0.142]
[1721219485641,16.93031368,3461.6,3461.5,0.142]
[1721219486000,22.86514368,3461.6,3461.5,1e-05]
[1721219486199,27.58017655,3461.6,3461.5,1e-05]
[1721219486805,2.89013,3460.1,3459.4,5.16207]
[1721219487011,2.89013,3460.1,3459.4,2.2714]
[1721219487227,2.89018,3460.0,3459.4,2.2714]
[1721219488544,2.89026,3459.9,3459.4,2.2714]
[1721219488717,2.89026,3459.9,3459.2,10.3308]
[1721219489446,5.78011,3460.2,3459.3,2.89074]
[1721219489643,2.4411,3460.7,3459.5,2.2816]
[1721219489844,2.89001,3460.2,3459.5,2.2816]
[1721219490044,2.89009,3460.1,3459.5,4.03203231]
[1721219490952,2.89018,3460.0,3459.5,2.2816]
[1721219492645,2.89006,3460.2,3459.5,5.17217]
[1721219492831,2.88995,3460.3,3459.5,5.17217]
[1721219493144,2.88999,3460.3,3459.5,5.17217]
[1721219493452,2.89002,3460.2,3459.5,5.17217]
[1721219494178,3.35205925,3461.0,3459.5,3.74295631]
[1721219494449,2.88959,3460.7,3459.9,2.8902]
[1721219494615,2.88959,3460.7,3460.0,2.89015]
[1721219495831,2.88959,3460.7,3459.9,2.8902]
[1721219495832,2.88959,3460.7,3460.1,2.89005]
[1721219496029,2.88959,3460.7,3460.2,2.492]
[1721219497131,3.711989,3460.7,3460.0,2.89015]
[1721219498222,3.711989,3460.7,3459.9,2.4411]
[1721219498223,2.8898,3460.5,3459.9,2.4411]
[1721219498754,2.8898,3460.5,3459.8,1.7]
[1721219499051,2.8898,3460.5,3459.7,10.33036]
[1721219499258,2.88969,3460.6,3459.9,2.89025]
[1721219499466,2.88976,3460.5,3459.9,1.567121]
[1721219499749,2.88976,3460.5,3459.7,10.33034]
[1721219500347,2.88964,3460.7,3459.9,2.8902]
[1721219500519,2.88973,3460.6,3459.9,2.8902]
[1721219501249,2.88954,3460.8,3460.0,2.89016]
[1721219501543,2.88967,3460.6,3460.1,2.4508]
[1721219501926,2.88967,3460.6,3459.9,2.89018]
[1721219504055,2.88967,3460.6,3459.8,5.34109]
[1721219504259,3.467591,3460.6,3459.8,2.4508]
[1721219504425,3.467591,3460.6,3459.9,5.78038]
[1721219504619,3.467591,3460.6,3459.9,2.89018]
[1721219504829,5.743391,3460.6,3459.9,2.89018]
[1721219505162,5.743391,3460.6,3460.0,2.89017]
[1721219505532,5.743391,3460.6,3459.8,2.4508]
[1721219505849,5.743391,3460.6,3459.9,2.89023]
[1721219506523,3.467591,3460.6,3459.9,2.89023]
[1721219507189,3.467591,3460.6,3459.9,5.78042]
[1721219507402,2.88967,3460.6,3459.9,5.78042]
[1721219508109,2.88967,3460.6,3460.0,2.89015]
[1721219510766,2.88967,3460.6,3459.7,7.44]
[1721219511014,2.88984,3460.4,3459.7,10.33041]
[1721219511298,3.708221,3460.4,3459.7,10.33041]
[1721219511655,2.88993,3460.3,3459.7,7.44]
[1721219512010,2.89022,3460.0,3459.2,2.89078]
[1721219512337,2.43,3459.9,3459.0,2.89097]
[1721219512467,2.89057,3459.6,3458.8,7.44]
[1721219512803,2.89061,3459.5,3458.8,7.44]
[1721219513594,2.89061,3459.5,3458.8,10.33117]
[1721219514113,2.89057,3459.6,3458.8,10.33117]
[1721219515152,2.89057,3459.6,3458.9,2.89107]
[1721219515359,0.578092,3459.5,3458.9,2.89107]
[1721219516073,3.468682,3459.5,3458.7,2.89124]
[1721219516269,3.468682,3459.5,3458.8,2.89117]
[1721219516580,3.468682,3459.5,3458.7,2.89125]
[1721219516776,2.89067,3459.4,3458.7,2.89125]
[1721219516979,0.6359332,3459.3,3458.7,2.89125]
[1721219519302,0.6359332,3459.3,3458.8,2.89116]
[1721219519487,0.6359332,3459.3,3458.5,2.89139]
[1721219519801,0.6359332,3459.3,3458.7,2.8912]
[1721219520360,3.5267132,3459.3,3458.5,2.89139]
[1721219520564,3.09263832,3459.2,3458.5,2.89139]
[1721219520872,3.09263832,3459.2,3458.5,2.89135]
[1721219521188,5.98349832,3459.2,3458.4,2.89145]
[1721219521390,5.78142,3459.4,3458.6,2.89128]
[1721219521598,2.89076,3459.3,3458.6,2.89128]
[1721219521962,2.89067,3459.4,3458.7,2.89124]
[1721219522896,2.89076,3459.3,3458.7,2.89124]
[1721219524061,2.89076,3459.3,3458.5,2.89135]
[1721219524279,0.578136,3459.2,3458.5,2.89135]
[1721219524778,0.578136,3459.2,3458.6,2.89132]
[1721219524979,2.89076,3459.3,3458.6,2.89132]
[1721219525708,2.89076,3459.3,3458.7,2.89124]
[1721219527189,2.89067,3459.4,3458.7,2.89118]
[1721219527866,2.89067,3459.4,3458.7,5.78235]
[1721219528064,2.89067,3459.4,3458.7,2.89117]
[1721219528667,2.89067,3459.4,3458.7,5.78235]
[1721219529308,3.695438,3459.4,3458.7,5.78235]
[1721219529510,0.804768,3459.4,3458.8,2.89117]
[1721219529721,2.89068,3459.4,3458.7,2.89117]
[1721219530000,2.89068,3459.4,3458.7,5.78235]
[1721219530192,2.89068,3459.4,3458.7,2.89117]
[1721219530388,2.89068,3459.4,3458.8,2.89114]
[1721219530612,3.695444,3459.4,3458.8,2.89114]
[1721219538528,1.024,3459.3,3458.8,2.89114]
[1721219539109,3.695444,3459.4,3458.8,2.89114]
[1721219540022,1.024,3459.3,3458.8,2.89114]
[1721219542330,1.024,3459.3,3458.6,2.89126]
[1721219542537,2.0116474,3459.3,3458.6,2.89126]
[1721219542702,2.0116474,3459.3,3458.8,2.89112]
[1721219544334,2.0116474,3459.3,3458.6,5.78252]
[1721219544641,2.0116474,3459.3,3458.6,5.78255]
[1721219544857,1.024,3459.1,3458.4,2.89147]
[1721219545945,1.024,3458.9,3458.4,2.89147]
[1721219546261,1.024,3459.1,3458.6,2.89133]
[1721219546565,3.91492,3459.1,3458.4,2.89147]
[1721219546705,1.024,3458.9,3458.4,2.89147]
[1721219547946,1.024,3458.9,3458.3,7.44]
[1721219547947,1.024,3458.7,3458.3,7.44]
[1721219548168,3.4268,3458.7,3458.3,7.44]
[1721219548504,3.4268,3458.7,3458.1,2.89173]
[1721219549306,0.631802,3458.6,3458.1,2.89173]
[1721219550344,1.024,3458.7,3458.1,2.89173]
[1721219550853,2.89122,3458.8,3458.1,2.89173]
[1721219551445,1.024,3458.5,3458.1,2.89173]
[1721219551627,1.024,3458.5,3457.9,2.89186]
[1721219551827,1.929764,3458.5,3457.9,2.89186]
[1721219552633,4.821184,3458.5,3457.9,2.89186]
[1721219553874,1.024,3458.3,3457.9,2.89186]
[1721219554280,4.821184,3458.5,3457.9,2.89186]
[1721219554479,0.9963674,3458.4,3457.9,2.89186]
[1721219555756,3.2751,3458.7,3457.9,2.89186]
[1721219555962,2.89135,3458.6,3457.9,2.89186]
[1721219556165,2.2511,3458.7,3458.1,2.8917]
[1721219557031,3.2751,3458.7,3458.1,2.8917]
[1721219557430,3.2751,3458.7,3458.2,2.89166]
[1721219557843,1.93115925,3458.9,3458.2,2.89166]
[1721219559808,3.45443049,3458.8,3458.2,2.89166]
[1721219560102,1.024,3458.7,3458.2,2.89166]
[1721219560450,3.91526,3458.7,3458.2,2.89166]
[1721219560651,0.73696905,3458.6,3458.2,2.89166]
[1721219561566,0.73696905,3458.6,3458.0,2.89177]
[1721219561755,3.2835,3458.5,3458.0,2.89177]
[1721219562172,6.17497,3458.5,3457.8,2.892]
[1721219562551,6.17497,3458.5,3457.8,3.19353636]
[1721219562805,0.98031991,3458.4,3457.8,3.19353636]
[1721219563983,0.98031991,3458.4,3457.8,6.08548636]
[1721219564183,6.17497,3458.5,3457.9,2.89191]
[1721219565727,1.024,3458.3,3457.9,2.89191]
[1721219566828,6.17497,3458.5,3457.9,2.89191]
[1721219571034,1.024,3458.3,3457.9,2.89191]
[1721219571885,3.2835,3458.5,3458.0,2.89183]
[1721219572087,4.30846088,3458.5,3458.0,2.89183]
[1721219573398,3.28446088,3458.5,3458.0,2.89183]
[1721219573600,1.024,3458.4,3458.0,2.89183]
[1721219581317,1.024,3458.2,3457.9,2.89192]
[1721219581716,1.024,3458.2,3457.8,2.89199]
[1721219581717,1.024,3458.2,3458.0,2.89183]
[1721219581925,1.93071009,3458.4,3458.0,2.89183]
[1721219582943,0.90715925,3458.7,3458.0,5.29477]
[1721219583210,4.24429616,3458.8,3458.0,5.29477]
[1721219583211,1.024,3458.6,3458.0,8.18656]
[1721219583405,1.024,3458.4,3458.1,2.89176]
[1721219584106,1.024,3458.4,3458.2,2.89165]
[1721219584311,1.024,3458.6,3458.2,2.89165]
[1721219585199,1.024,3458.6,3458.0,5.29476]
[1721219585200,0.99293987,3458.5,3458.0,5.29476]
[1721219585392,0.69816084,3458.5,3458.0,5.994236]
[1721219585601,2.89101,3459.0,3458.0,5.994236]
[1721219585602,0.90715925,3459.3,3459.2,2.89084]
[1721219585916,2.3,3459.2,3458.4,0.60679294]
[1721219586100,1.024,3458.5,3458.1,2.89171]
[1721219586600,1.024,3458.3,3457.7,5.25977]
[1721219586860,1.024,3458.3,3457.9,2.89187]
[1721219587136,1.93292782,3458.5,3458.0,2.89178]
[1721219587347,1.024,3458.3,3457.9,2.89192]
[1721219587639,1.024,3458.3,3458.0,2.89183]
[1721219587999,1.93292782,3458.5,3458.0,2.89183]
[1721219588648,1.93292782,3458.5,3458.1,2.89175]
[1721219588950,1.62736535,3458.5,3457.7,2.3677]
[1721219589103,2.53629317,3458.5,3457.8,2.89195]
[1721219590239,0.90892782,3458.4,3458.0,2.8918]
[1721219593861,0.90892782,3458.4,3458.2,2.89167]
[1721219594154,1.20954567,3458.6,3458.5,2.89142]
[1721219594340,3.91098678,3458.7,3458.5,2.89142]
[1721219594554,0.91098678,3458.7,3458.5,2.89142]
[1721219596614,0.91098678,3458.6,3458.5,2.89142]
[1721219596935,0.91098678,3458.7,3458.5,2.89142]
[1721219598047,0.91098678,3458.8,3458.5,2.89142]
[1721219599943,0.91098678,3458.7,3458.5,2.89142]
[1721219604512,0.91098678,3458.7,3458.4,2.8915]
[1721219604756,0.91098678,3458.7,3458.2,2.4491]
[1721219604938,3.91098678,3458.7,3458.3,2.89157]
[1721219605639,0.40873074,3458.6,3458.3,2.89157]
[1721219606549,1.31976658,3458.5,3458.3,2.89157]
[1721219606750,1.93498678,3458.6,3458.3,2.89157]
[1721219606952,1.93498678,3458.6,3458.1,2.89172]
[1721219606953,1.31976649,3458.5,3458.1,2.89172]
[1721219607259,1.31981016,3458.4,3458.1,2.89172]
[1721219607543,1.93498678,3458.6,3458.1,2.89172]
[1721219607690,0.40876514,3458.5,3458.1,2.89172]
[1721219608758,0.40876514,3458.5,3458.1,5.78342]
[1721219608959,0.40876514,3458.5,3458.1,2.8917]
[1721219608960,1.31975192,3458.5,3458.1,2.8917]
[1721219609176,5.2549,3458.7,3458.1,2.8917]
[1721219609177,0.91098678,3458.6,3458.1,2.8917]
[1721219609377,1.31975341,3458.5,3458.1,2.8917]
[1721219609547,0.91098678,3458.6,3458.1,2.8917]
[1721219609746,0.40876173,3458.5,3458.1,2.8917]
[1721219610065,1.31974851,3458.5,3458.1,2.8917]
[1721219610384,0.91098678,3458.6,3458.1,2.8917]
[1721219610594,0.40876337,3458.5,3458.1,2.8917]
[1721219611803,1.31975015,3458.5,3458.1,2.8917]
[1721219611970,0.91098678,3458.5,3458.1,2.8917]
[1721219612519,0.91098678,3458.5,3458.1,2.89168]
[1721219612666,0.91098678,3458.6,3458.1,2.89168]
[1721219612866,3.12477475,3458.6,3458.1,2.89168]
[1721219613069,1.31975368,3458.5,3458.1,2.89168]
[1721219613293,0.91098678,3458.5,3458.1,2.89168]
[1721219614712,1.93498678,3458.6,3458.1,2.89168]
[1721219615019,1.31975058,3458.5,3458.1,5.78336]
[1721219615303,1.93498678,3458.6,3458.1,2.89168]
[1721219615605,0.40876256,3458.5,3458.1,2.89168]
[1721219615974,0.40876256,3458.5,3458.1,5.78337]
[1721219616203,1.93498678,3458.6,3458.1,5.78337]
[1721219616381,0.40876358,3458.5,3458.1,2.89168]
[1721219616584,0.40876358,3458.5,3458.2,2.89166]
[1721219617085,0.40876358,3458.5,3458.2,2.8916]
[1721219617809,0.40876358,3458.5,3458.0,2.89177]
[1721219618006,0.40876358,3458.5,3458.2,2.89163]
[1721219618507,0.40876358,3458.5,3458.3,2.89158]
[1721219619086,0.40876358,3458.5,3458.1,2.89168]
[1721219619315,1.31975036,3458.5,3458.1,2.89168]
[1721219619610,1.31975036,3458.5,3458.2,2.89162]
[1721219619611,0.40878603,3458.4,3458.2,2.89162]
[1721219619780,0.91098678,3458.5,3458.2,2.89162]
[1721219620189,0.91098678,3458.5,3457.9,2.3502]
[1721219620190,0.40878526,3458.4,3458.1,2.89167]
[1721219620487,0.91098678,3458.5,3458.2,2.89161]
[1721219620892,0.40878629,3458.4,3458.2,2.89161]
[1721219621092,0.91098678,3458.5,3458.2,2.89161]
[1721219622181,0.40877898,3458.4,3458.2,2.89161]
[1721219622382,0.91098678,3458.6,3458.3,2.89154]
[1721219622605,0.4087575,3458.5,3458.3,2.89154]
[1721219622804,0.91098678,3458.5,3458.3,2.89154]
[1721219623492,0.91098678,3458.5,3458.2,2.89166]
[1721219624408,0.91098678,3458.5,3458.3,2.89158]
[1721219624793,0.91098678,3458.6,3458.3,2.89158]
[1721219625105,0.40876635,3458.5,3458.3,2.89158]
[1721219626023,0.91098678,3458.6,3458.3,2.89158]
[1721219626193,0.40876724,3458.5,3458.3,2.89158]
[1721219626807,0.40876724,3458.5,3458.1,2.89169]
[1721219627009,1.31975402,3458.5,3458.1,2.89169]
[1721219627208,0.40877202,3458.4,3458.2,2.89163]
[1721219627419,0.91098678,3458.5,3458.2,2.89163]
[1721219627611,0.91098678,3458.6,3458.2,2.89163]
[1721219627812,0.40876922,3458.5,3458.2,2.89163]
[1721219628017,1.319756,3458.5,3458.2,2.89163]
[1721219628220,0.91098678,3458.5,3458.2,2.89163]
[1721219628620,0.91098678,3458.6,3458.2,2.89163]
[1721219628816,1.31970569,3458.5,3458.2,2.89163]
[1721219629020,0.91098678,3458.5,3458.2,2.89163]
[1721219630207,0.91098678,3458.6,3458.3,2.89156]
[1721219630531,1.82137669,3459.2,3458.3,2.89156]
[1721219630532,0.91098678,3459.1,3458.8,2.8911]
[1721219630829,0.91098678,3459.2,3458.9,2.89107]
[1721219630996,0.91098678,3459.2,3458.9,3.469302]
[1721219631196,0.91098678,3459.3,3458.9,3.469302]
[1721219631398,0.40853891,3459.2,3459.1,2.89092]
[1721219631595,1.51781391,3459.6,3459.3,2.89075]
[1721219631596,0.91098678,3459.6,3459.3,2.89075]
[1721219631998,1.51781391,3460.0,3459.4,2.89066]
[1721219631999,0.91098678,3459.7,3459.4,2.89066]
[1721219632237,0.91098678,3459.7,3459.4,3.46881]
[1721219632471,1.024,3459.9,3459.4,3.46881]
[1721219632638,1.024,3459.9,3459.4,2.89066]
[1721219633442,1.024,3459.7,3459.4,2.89066]
[1721219634133,1.024,3459.5,3459.1,2.89091]
[1721219634504,1.024,3459.5,3459.2,2.89083]
[1721219636727,1.024,3459.7,3459.3,2.89073]
[1721219636930,1.024,3459.7,3459.4,2.89066]
[1721219637230,1.024,3459.9,3459.4,2.89066]
[1721219637801,1.024,3459.9,3459.5,2.89057]
[1721219640964,0.91098678,3460.2,3459.3,1.7]
[1721219641105,0.91098678,3460.6,3460.1,2.89008]
[1721219641315,1.024,3460.8,3460.1,2.89008]
[1721219641660,1.024,3460.8,3460.0,2.309]
[1721219641661,0.83717525,3460.7,3460.0,2.309]
[1721219642045,2.88968,3460.6,3460.0,2.309]
[1721219642225,0.83717525,3460.7,3460.0,2.309]
[1721219642866,2.88972,3460.6,3460.0,2.309]
[1721219644037,0.83717525,3460.7,3460.0,2.309]
[1721219644263,3.72682525,3460.7,3460.0,5.19917]
[1721219644649,2.3378,3460.9,3460.4,2.88978]
[1721219644828,3.0,3461.0,3460.4,2.88978]
[1721219645337,5.34087,3461.2,3460.4,2.88978]
[1721219645338,3.0,3461.1,3460.4,2.88978]
[1721219646429,5.88926,3461.1,3460.4,2.88978]
[1721219648239,5.88926,3461.1,3460.2,2.88993]
[1721219648457,7.012267,3461.1,3460.2,2.88993]
[1721219649377,7.012267,3461.1,3460.4,2.88983]
[1721219650175,4.123007,3461.1,3460.4,2.88983]
[1721219650380,4.25554567,3461.7,3460.4,2.88978]
[1721219650381,2.3948,3461.6,3460.4,2.88978]
[1721219650562,2.88897,3461.5,3460.8,2.88945]
[1721219651638,2.889,3461.4,3460.8,2.88945]
[1721219654335,2.88908,3461.3,3460.4,2.88979]
[1721219654670,2.88954,3460.8,3459.9,5.28785]
[1721219654874,2.88954,3460.8,3460.0,2.89011]
[1721219655094,2.88954,3460.8,3460.1,2.89003]
[1721219655253,2.88954,3460.8,3459.9,2.3976]
[1721219655572,2.88963,3460.7,3460.0,2.89016]
[1721219655751,2.88963,3460.7,3460.0,2.89009]
[1721219655962,2.88963,3460.7,3460.0,3.418859]
[1721219656147,2.88963,3460.7,3460.1,2.89008]
[1721219656364,2.88938,3461.0,3460.2,2.89]
[1721219656580,3.0,3460.9,3460.2,2.89]
[1721219657077,3.0,3460.9,3460.5,2.3204]
[1721219657242,3.0,3461.3,3460.5,2.841422]
[1721219657535,3.0,3461.3,3460.5,2.3204]
[1721219657774,5.88914,3461.3,3460.6,2.88966]
[1721219658681,3.0,3461.3,3460.7,2.88957]
[1721219658978,3.0,3461.4,3460.7,2.88957]
[1721219659353,5.88904,3461.4,3460.7,2.88957]
[1721219659583,2.88909,3461.3,3460.7,2.88957]
[1721219659741,2.88909,3461.3,3460.5,5.21008]
[1721219659939,2.88909,3461.3,3460.5,5.731088]
[1721219660280,2.88909,3461.3,3460.6,2.88961]
[1721219660446,2.88909,3461.3,3460.7,2.88958]
[1721219660755,2.88909,3461.3,3460.6,2.88964]
[1721219660950,2.88917,3461.2,3460.6,2.88964]
[1721219661344,5.88908,3461.4,3460.6,2.88964]
[1721219661544,7.251794,3461.4,3460.6,2.88964]
[1721219661747,2.88912,3461.3,3460.6,2.88964]
[1721219662041,2.88912,3461.3,3460.7,2.88958]
[1721219664494,2.88912,3461.3,3460.6,2.3066]
[1721219664798,2.88912,3461.3,3460.6,5.19627]
[1721219665149,2.88912,3461.3,3460.6,6.004865]
[1721219665353,2.88912,3461.3,3460.7,2.88958]
[1721219666144,3.0,3461.4,3460.7,2.88958]
[1721219666385,5.88905,3461.4,3460.7,2.88958]
[1721219666594,2.8891,3461.3,3460.7,2.88958]
[1721219666798,3.0,3461.4,3460.8,0.8894455]
[1721219667097,693.603162,3520.7,3460.8,0.8894455]
[1721219667098,5.88881,3461.7,3460.8,3.7789355]
[1721219667307,2.88881,3461.7,3460.9,2.88938]
[1721219667827,2.88881,3461.7,3461.0,2.88932]
[1721219668429,2.88884,3461.6,3461.0,2.88932]
[1721219668933,5.28922,3461.9,3461.1,5.17665]
[1721219669085,2.88862,3461.9,3461.1,5.17665]
[1721219669432,2.88862,3461.9,3461.1,6.153247]
[1721219669577,3.0,3461.8,3461.2,2.88915]
[1721219671678,5.77693,3462.1,3461.2,2.88911]